[Event "Late-Titled-Tuesday-Blitz-September-26-2023"]
[Site "Chess.com"]
[Date "2023.09.26"]
[Round "6"]
[White "Bodhanas"]
[Black "Zavgorodniy_Sergiy"]
[Result "0-1"]
[WhiteElo "2088"]
[BlackElo "2579"]
[TimeControl "180+1"]
[EndTime "15:04:34 PDT"]
[Termination "Zavgorodniy_Sergiy won by checkmate"]

1. d4 {[%clk 0:03:00.1]} 1... d5 {[%clk 0:02:59.8]} 2. Nf3 {[%clk 0:02:59.7]}
2... Nf6 {[%clk 0:02:59.6]} 3. Bf4 {[%clk 0:02:59.4]} 3... e6 {[%clk 0:02:59.6]}
4. c3 {[%clk 0:02:58.4]} 4... c5 {[%clk 0:02:59.8]} 5. e3 {[%clk 0:02:55.1]}
5... Bd6 {[%clk 0:03:00]} 6. Bxd6 {[%clk 0:02:51.8]} 6... Qxd6 {[%clk
0:03:00.9]} 7. Nbd2 {[%clk 0:02:51.5]} 7... Nbd7 {[%clk 0:03:00.8]} 8. Bd3
{[%clk 0:02:46]} 8... O-O {[%clk 0:03:00.4]} 9. O-O {[%clk 0:02:45.1]} 9... e5
{[%clk 0:03:00.5]} 10. dxe5 {[%clk 0:02:44.3]} 10... Nxe5 {[%clk 0:03:01.4]} 11.
Nxe5 {[%clk 0:02:44.1]} 11... Qxe5 {[%clk 0:03:02.3]} 12. Re1 {[%clk 0:02:43.6]}
12... b6 {[%clk 0:03:01.8]} 13. e4 {[%clk 0:02:37.8]} 13... Bb7 {[%clk
0:02:55.2]} 14. Nf3 {[%clk 0:02:29.3]} 14... Qf4 {[%clk 0:02:50.7]} 15. e5
{[%clk 0:02:17.9]} 15... Ne4 {[%clk 0:02:46.5]} 16. Qc1 {[%clk 0:02:00.1]} 16...
Qxc1 {[%clk 0:01:57.3]} 17. Raxc1 {[%clk 0:01:56.9]} 17... f5 {[%clk 0:01:50.8]}
18. exf6 {[%clk 0:01:52.4]} 18... Nxf6 {[%clk 0:01:49.2]} 19. Re2 {[%clk
0:01:39.6]} 19... Rfe8 {[%clk 0:01:44.9]} 20. Rce1 {[%clk 0:01:37.7]} 20... Kf8
{[%clk 0:01:42.1]} 21. Ne5 {[%clk 0:01:33.8]} 21... a6 {[%clk 0:01:30.4]} 22. f4
{[%clk 0:01:11]} 22... Rac8 {[%clk 0:01:22.9]} 23. Nf3 {[%clk 0:01:08.3]} 23...
Rxe2 {[%clk 0:01:18.8]} 24. Rxe2 {[%clk 0:01:07.7]} 24... Re8 {[%clk 0:01:17.9]}
25. Rxe8+ {[%clk 0:00:53.6]} 25... Kxe8 {[%clk 0:01:18.8]} 26. Ne5 {[%clk
0:00:51.6]} 26... Ke7 {[%clk 0:01:17.9]} 27. Kf2 {[%clk 0:00:49.9]} 27... h6
{[%clk 0:01:16.1]} 28. Bf5 {[%clk 0:00:47]} 28... Kd6 {[%clk 0:01:09.6]} 29. g3
{[%clk 0:00:44.1]} 29... a5 {[%clk 0:01:09.5]} 30. a3 {[%clk 0:00:39.6]} 30...
Ba6 {[%clk 0:01:09]} 31. Ke3 {[%clk 0:00:37.8]} 31... Bf1 {[%clk 0:01:05.2]} 32.
Bd3 {[%clk 0:00:32.9]} 32... Bh3 {[%clk 0:00:55.7]} 33. b4 {[%clk 0:00:29]}
33... axb4 {[%clk 0:00:54.6]} 34. axb4 {[%clk 0:00:26.4]} 34... Be6 {[%clk
0:00:50.2]} 35. bxc5+ {[%clk 0:00:24.9]} 35... bxc5 {[%clk 0:00:51.1]} 36. h4
{[%clk 0:00:20.5]} 36... Bc8 {[%clk 0:00:49.5]} 37. c4 {[%clk 0:00:17.2]} 37...
d4+ {[%clk 0:00:49]} 38. Kf3 {[%clk 0:00:16.6]} 38... Bb7+ {[%clk 0:00:46.3]}
39. Ke2 {[%clk 0:00:16]} 39... Ba8 {[%clk 0:00:42.2]} 40. g4 {[%clk 0:00:14.4]}
40... Ne4 {[%clk 0:00:35.3]} 41. Bxe4 {[%clk 0:00:14.2]} 41... Bxe4 {[%clk
0:00:36.2]} 42. g5 {[%clk 0:00:14]} 42... hxg5 {[%clk 0:00:35.6]} 43. hxg5
{[%clk 0:00:14.2]} 43... Ke6 {[%clk 0:00:34.9]} 44. Nd3 {[%clk 0:00:09.3]} 44...
Bxd3+ {[%clk 0:00:32.8]} 45. Kxd3 {[%clk 0:00:09.5]} 45... Kf5 {[%clk
0:00:33.3]} 46. Kc2 {[%clk 0:00:09.8]} 46... Kxf4 {[%clk 0:00:33.2]} 47. Kb3
{[%clk 0:00:10.5]} 47... Ke3 {[%clk 0:00:32.5]} 48. Ka4 {[%clk 0:00:11.1]} 48...
d3 {[%clk 0:00:32.9]} 49. Kb5 {[%clk 0:00:11.6]} 49... Kd4 {[%clk 0:00:33.4]}
50. Kc6 {[%clk 0:00:11.3]} 50... d2 {[%clk 0:00:33.6]} 51. g6 {[%clk 0:00:11.8]}
51... d1=Q {[%clk 0:00:33.8]} 52. Kb5 {[%clk 0:00:12.4]} 52... Qb3+ {[%clk
0:00:32.6]} 53. Kc6 {[%clk 0:00:12.4]} 53... Qxc4 {[%clk 0:00:32.6]} 54. Kd6
{[%clk 0:00:12.4]} 54... Qd3 {[%clk 0:00:31.2]} 55. Ke6 {[%clk 0:00:12.1]} 55...
Qxg6+ {[%clk 0:00:31.2]} 56. Ke7 {[%clk 0:00:12.5]} 56... c4 {[%clk 0:00:31.4]}
57. Kf8 {[%clk 0:00:11.9]} 57... c3 {[%clk 0:00:31.3]} 58. Kg8 {[%clk
0:00:11.2]} 58... c2 {[%clk 0:00:31.4]} 59. Kf8 {[%clk 0:00:11]} 59... c1=Q
{[%clk 0:00:31.6]} 60. Ke7 {[%clk 0:00:10.9]} 60... Qc7+ {[%clk 0:00:31.5]} 61.
Kf8 {[%clk 0:00:10.4]} 61... Qd8# {[%clk 0:00:31.8]} 0-1

[Event "Late-Titled-Tuesday-Blitz-September-26-2023"]
[Site "Chess.com"]
[Date "2023.09.26"]
[Round "6"]
[White "jk13"]
[Black "Harsha_Bharathakoti"]
[Result "0-1"]
[WhiteElo "2622"]
[BlackElo "2899"]
[TimeControl "180+1"]
[EndTime "15:04:35 PDT"]
[Termination "Harsha_Bharathakoti won by resignation"]

1. e4 {[%clk 0:03:00.9]} 1... c5 {[%clk 0:02:57.4]} 2. c3 {[%clk 0:03:01.1]}
2... Nf6 {[%clk 0:02:50.3]} 3. e5 {[%clk 0:03:01.5]} 3... Nd5 {[%clk 0:02:50.8]}
4. Bc4 {[%clk 0:03:02.2]} 4... e6 {[%clk 0:02:50.1]} 5. Nf3 {[%clk 0:03:01.8]}
5... d6 {[%clk 0:02:41.1]} 6. d4 {[%clk 0:03:01.3]} 6... cxd4 {[%clk 0:02:30.8]}
7. cxd4 {[%clk 0:03:02.2]} 7... Be7 {[%clk 0:02:19.8]} 8. O-O {[%clk 0:03:01.1]}
8... O-O {[%clk 0:02:20.5]} 9. Qe2 {[%clk 0:03:00.9]} 9... Bd7 {[%clk
0:02:21.2]} 10. Bd2 {[%clk 0:02:57.1]} 10... dxe5 {[%clk 0:02:19.9]} 11. dxe5
{[%clk 0:02:57.1]} 11... Bc6 {[%clk 0:02:20.2]} 12. Nc3 {[%clk 0:02:56]} 12...
Nxc3 {[%clk 0:01:53.4]} 13. Bxc3 {[%clk 0:02:56.9]} 13... Nd7 {[%clk 0:01:52.6]}
14. Rad1 {[%clk 0:02:52.6]} 14... Qc7 {[%clk 0:01:49.7]} 15. Rfe1 {[%clk
0:02:49.9]} 15... Nb6 {[%clk 0:01:42.6]} 16. Bd3 {[%clk 0:02:36.7]} 16... Rfd8
{[%clk 0:01:37.5]} 17. Nd4 {[%clk 0:02:27]} 17... Bd5 {[%clk 0:01:25.5]} 18. Bb1
{[%clk 0:01:54.3]} 18... g6 {[%clk 0:01:21.8]} 19. Rc1 {[%clk 0:01:48.6]} 19...
Qd7 {[%clk 0:01:21]} 20. Qg4 {[%clk 0:01:37.3]} 20... Na4 {[%clk 0:01:04.1]} 21.
h4 {[%clk 0:01:30.9]} 21... Nxc3 {[%clk 0:01:02.5]} 22. bxc3 {[%clk 0:01:31.8]}
22... h5 {[%clk 0:00:47.2]} 23. Qf4 {[%clk 0:01:28.3]} 23... Bf8 {[%clk
0:00:46.7]} 24. g4 {[%clk 0:01:12.8]} 24... hxg4 {[%clk 0:00:43.2]} 25. Qxg4
{[%clk 0:01:07.6]} 25... Bh6 {[%clk 0:00:41.1]} 26. Rcd1 {[%clk 0:01:04.4]}
26... Qe7 {[%clk 0:00:17.5]} 27. Rd3 {[%clk 0:00:57.2]} 27... Kh8 {[%clk
0:00:12.3]} 28. Rg3 {[%clk 0:00:54.4]} 28... Rg8 {[%clk 0:00:12.5]} 29. Kh2
{[%clk 0:00:44.8]} 29... Rac8 {[%clk 0:00:10.8]} 30. Reg1 {[%clk 0:00:44]} 30...
Rg7 {[%clk 0:00:06.9]} 31. f4 {[%clk 0:00:29.6]} 31... b6 {[%clk 0:00:03.3]} 32.
h5 {[%clk 0:00:20.5]} 32... g5 {[%clk 0:00:03.1]} 33. f5 {[%clk 0:00:17]} 33...
exf5 {[%clk 0:00:01.3]} 34. Nxf5 {[%clk 0:00:16.6]} 34... Qxe5 {[%clk
0:00:01.1]} 35. Nxh6 {[%clk 0:00:15.5]} 35... Rxc3 {[%clk 0:00:01.5]} 36. Nf5
{[%clk 0:00:07.5]} 36... Be6 {[%clk 0:00:02.2]} 37. Rg2 {[%clk 0:00:05.4]} 37...
Rg8 {[%clk 0:00:02]} 38. Kh3 {[%clk 0:00:05.1]} 38... Rc1 {[%clk 0:00:01.8]} 39.
Bd3 {[%clk 0:00:03.6]} 39... Rh1+ {[%clk 0:00:01.2]} 40. Rh2 {[%clk 0:00:04.3]}
40... Rd1 {[%clk 0:00:01.8]} 41. Be2 {[%clk 0:00:04.3]} 41... Re1 {[%clk
0:00:02.1]} 42. Bf3 {[%clk 0:00:04.8]} 42... Bxf5 {[%clk 0:00:02.6]} 43. h6
{[%clk 0:00:04.3]} 43... Bxg4+ {[%clk 0:00:03]} 44. Bxg4 {[%clk 0:00:05.2]}
44... f5 {[%clk 0:00:03]} 45. Rf2 {[%clk 0:00:06.1]} 45... fxg4+ {[%clk
0:00:03.4]} 46. Rxg4 {[%clk 0:00:06.8]} 46... Qe6 {[%clk 0:00:03.9]} 47. Rg2
{[%clk 0:00:07]} 47... Qxh6+ {[%clk 0:00:04.1]} 48. Kg3 {[%clk 0:00:07.9]} 48...
Re3+ {[%clk 0:00:04.3]} 49. Kf2 {[%clk 0:00:08.3]} 49... Qe6 {[%clk 0:00:04.9]}
50. Rh2+ {[%clk 0:00:09.2]} 50... Kg7 {[%clk 0:00:05.2]} 51. Rh5 {[%clk
0:00:09.5]} 51... Qxg4 {[%clk 0:00:05.1]} 52. Rxg5+ {[%clk 0:00:10]} 52... Qxg5
{[%clk 0:00:05.7]} 0-1

[Event "Late-Titled-Tuesday-Blitz-September-26-2023"]
[Site "Chess.com"]
[Date "2023.09.26"]
[Round "6"]
[White "fyall777"]
[Black "Byniolus"]
[Result "1-0"]
[WhiteElo "2581"]
[BlackElo "2762"]
[TimeControl "180+1"]
[EndTime "15:04:37 PDT"]
[Termination "fyall777 won on time"]

1. d4 {[%clk 0:02:53.1]} 1... d6 {[%clk 0:02:59]} 2. Nf3 {[%clk 0:02:54]} 2...
Bg4 {[%clk 0:02:58.5]} 3. c4 {[%clk 0:02:54.9]} 3... c6 {[%clk 0:02:58.3]} 4.
Qb3 {[%clk 0:02:54.6]} 4... Qb6 {[%clk 0:02:58.2]} 5. Nc3 {[%clk 0:02:52.6]}
5... Nd7 {[%clk 0:02:57.1]} 6. Qxb6 {[%clk 0:02:44]} 6... axb6 {[%clk
0:02:56.8]} 7. e3 {[%clk 0:02:41]} 7... Ngf6 {[%clk 0:02:56.4]} 8. Be2 {[%clk
0:02:40.8]} 8... e6 {[%clk 0:02:56.4]} 9. h3 {[%clk 0:02:38.5]} 9... Bh5 {[%clk
0:02:54.7]} 10. Bd2 {[%clk 0:02:33.2]} 10... d5 {[%clk 0:02:53.3]} 11. cxd5
{[%clk 0:02:22.7]} 11... exd5 {[%clk 0:02:53]} 12. O-O {[%clk 0:02:19.9]} 12...
Bd6 {[%clk 0:02:48.5]} 13. a4 {[%clk 0:02:18.1]} 13... h6 {[%clk 0:02:44]} 14.
g4 {[%clk 0:02:09.8]} 14... Bg6 {[%clk 0:02:43.2]} 15. Nh4 {[%clk 0:02:10.1]}
15... Bh7 {[%clk 0:02:39]} 16. Nf5 {[%clk 0:02:02.1]} 16... Bxf5 {[%clk
0:02:31.4]} 17. gxf5 {[%clk 0:02:02.3]} 17... O-O {[%clk 0:02:17]} 18. Bd3
{[%clk 0:02:02.1]} 18... Rfe8 {[%clk 0:02:11.8]} 19. f3 {[%clk 0:02:00.7]} 19...
Bb4 {[%clk 0:02:01.7]} 20. Rfe1 {[%clk 0:02:00.4]} 20... Rad8 {[%clk 0:01:50.3]}
21. Kf2 {[%clk 0:01:47.6]} 21... Kh8 {[%clk 0:01:13.9]} 22. Rg1 {[%clk
0:01:40.8]} 22... Nh7 {[%clk 0:00:51.6]} 23. h4 {[%clk 0:01:26.2]} 23... Be7
{[%clk 0:00:51.4]} 24. Rh1 {[%clk 0:01:24.9]} 24... Ndf6 {[%clk 0:00:48.1]} 25.
Rag1 {[%clk 0:01:22.3]} 25... Nh5 {[%clk 0:00:45.8]} 26. Ne2 {[%clk 0:01:18.9]}
26... Bf6 {[%clk 0:00:23.8]} 27. b4 {[%clk 0:01:16.1]} 27... Nf8 {[%clk
0:00:16.1]} 28. Rc1 {[%clk 0:01:05.6]} 28... Ra8 {[%clk 0:00:13.8]} 29. a5
{[%clk 0:01:04.3]} 29... b5 {[%clk 0:00:13.8]} 30. e4 {[%clk 0:01:00.7]} 30...
dxe4 {[%clk 0:00:06.9]} 31. fxe4 {[%clk 0:01:00.9]} 31... Be7 {[%clk 0:00:06.6]}
32. e5 {[%clk 0:00:57.3]} 32... Nd7 {[%clk 0:00:03.1]} 33. Be4 {[%clk
0:00:38.1]} 33... Nb8 {[%clk 0:00:03.2]} 34. Bf3 {[%clk 0:00:38.3]} 34... g6
{[%clk 0:00:03.1]} 35. Bxh5 {[%clk 0:00:36.9]} 35... gxh5 {[%clk 0:00:03.6]} 36.
Bxh6 {[%clk 0:00:37]} 36... Na6 {[%clk 0:00:03.6]} 37. Rcg1 {[%clk 0:00:30.5]}
37... Rg8 {[%clk 0:00:03.5]} 38. f6 {[%clk 0:00:29.3]} 38... Bxb4 {[%clk
0:00:03.2]} 39. Bg7+ {[%clk 0:00:29.2]} 39... Kh7 {[%clk 0:00:03.1]} 40. Rg5
{[%clk 0:00:29.7]} 40... Bd2 {[%clk 0:00:02.5]} 41. Rf5 {[%clk 0:00:26.6]} 41...
Kg6 {[%clk 0:00:03.4]} 42. Ng3 {[%clk 0:00:25.3]} 42... Rad8 {[%clk 0:00:02]}
43. Rg1 {[%clk 0:00:23.4]} 43... Rxd4 {[%clk 0:00:02.3]} 44. Rxh5 {[%clk
0:00:23.1]} 44... Rg4 {[%clk 0:00:02.2]} 45. Rh8 {[%clk 0:00:18.4]} 45... Rxh8
{[%clk 0:00:02]} 46. Bxh8 {[%clk 0:00:18.5]} 46... Rxh4 {[%clk 0:00:02.5]} 47.
Nf1+ {[%clk 0:00:17.1]} 47... Kh7 {[%clk 0:00:01.9]} 48. Nxd2 {[%clk 0:00:16.2]}
48... Kxh8 {[%clk 0:00:02.4]} 49. Rg7 {[%clk 0:00:16.7]} 49... Rf4+ {[%clk
0:00:01.5]} 50. Nf3 {[%clk 0:00:15]} 1-0

[Event "Late-Titled-Tuesday-Blitz-September-26-2023"]
[Site "Chess.com"]
[Date "2023.09.26"]
[Round "6"]
[White "GAO"]
[Black "tarno17"]
[Result "0-1"]
[WhiteElo "2321"]
[BlackElo "2168"]
[TimeControl "180+1"]
[EndTime "15:04:40 PDT"]
[Termination "tarno17 won by resignation"]

1. Nf3 {[%clk 0:03:00.9]} 1... d5 {[%clk 0:02:59.9]} 2. b3 {[%clk 0:03:00.3]}
2... e6 {[%clk 0:03:00.3]} 3. Bb2 {[%clk 0:02:59.4]} 3... Nf6 {[%clk 0:03:00.7]}
4. g3 {[%clk 0:02:58.4]} 4... Be7 {[%clk 0:03:00.2]} 5. Bg2 {[%clk 0:02:58.8]}
5... O-O {[%clk 0:03:00.8]} 6. O-O {[%clk 0:02:59.1]} 6... c5 {[%clk 0:03:01.2]}
7. d3 {[%clk 0:02:58.8]} 7... b6 {[%clk 0:03:00.3]} 8. Nbd2 {[%clk 0:02:59.7]}
8... Bb7 {[%clk 0:02:58.5]} 9. Re1 {[%clk 0:02:58.5]} 9... Nbd7 {[%clk
0:02:58.6]} 10. e4 {[%clk 0:02:58.2]} 10... dxe4 {[%clk 0:02:48.4]} 11. dxe4
{[%clk 0:02:55.8]} 11... Qc7 {[%clk 0:02:37.1]} 12. Qe2 {[%clk 0:02:48.6]} 12...
Rfd8 {[%clk 0:02:23.8]} 13. Rad1 {[%clk 0:02:45]} 13... a5 {[%clk 0:02:11.3]}
14. a4 {[%clk 0:02:43.4]} 14... Ba6 {[%clk 0:02:11.1]} 15. c4 {[%clk 0:02:43.1]}
15... Nf8 {[%clk 0:02:07.3]} 16. Nb1 {[%clk 0:02:42.3]} 16... Ng6 {[%clk
0:02:06.9]} 17. Nc3 {[%clk 0:02:41.9]} 17... Rxd1 {[%clk 0:01:54.5]} 18. Rxd1
{[%clk 0:02:40]} 18... Rd8 {[%clk 0:01:53.8]} 19. h3 {[%clk 0:02:37.9]} 19... h6
{[%clk 0:01:45.1]} 20. Kf1 {[%clk 0:02:34.6]} 20... Nd7 {[%clk 0:01:39]} 21. Nb1
{[%clk 0:02:21.5]} 21... Bf6 {[%clk 0:01:34.5]} 22. Bxf6 {[%clk 0:02:21.5]}
22... Nxf6 {[%clk 0:01:34.1]} 23. Rd3 {[%clk 0:02:20.3]} 23... Bb7 {[%clk
0:01:33.4]} 24. Ne1 {[%clk 0:02:09.3]} 24... Rxd3 {[%clk 0:01:26.3]} 25. Qxd3
{[%clk 0:02:08.3]} 25... Ne5 {[%clk 0:01:27]} 26. Qe2 {[%clk 0:01:53.7]} 26...
Qd8 {[%clk 0:01:20.4]} 27. f4 {[%clk 0:01:51.5]} 27... Nc6 {[%clk 0:01:19.3]}
28. Nc3 {[%clk 0:01:50.4]} 28... Nd4 {[%clk 0:01:17.3]} 29. Qd3 {[%clk
0:01:48.7]} 29... Qc7 {[%clk 0:01:08.1]} 30. Nb5 {[%clk 0:01:47.9]} 30... Nxb5
{[%clk 0:01:03.1]} 31. axb5 {[%clk 0:01:48.8]} 31... Qb8 {[%clk 0:00:56.2]} 32.
Ke2 {[%clk 0:01:46.1]} 32... Qa8 {[%clk 0:00:55.8]} 33. Ke3 {[%clk 0:01:45.3]}
33... Nh5 {[%clk 0:00:42.5]} 34. Kf2 {[%clk 0:01:39.9]} 34... Nf6 {[%clk
0:00:42.2]} 35. Ke3 {[%clk 0:01:39.7]} 35... Nh5 {[%clk 0:00:39.7]} 36. Kf2
{[%clk 0:01:20.2]} 36... Nf6 {[%clk 0:00:39.4]} 37. e5 {[%clk 0:01:20.9]} 37...
Ne4+ {[%clk 0:00:30.4]} 38. Kg1 {[%clk 0:01:11.3]} 38... f5 {[%clk 0:00:19.4]}
39. exf6 {[%clk 0:01:08.5]} 39... gxf6 {[%clk 0:00:19.1]} 40. Nf3 {[%clk
0:01:07.5]} 40... Nxg3 {[%clk 0:00:16.7]} 41. Nh4 {[%clk 0:00:57.7]} 41... Nf5
{[%clk 0:00:12.7]} 42. Nxf5 {[%clk 0:00:57]} 42... exf5 {[%clk 0:00:11.6]} 43.
Bxb7 {[%clk 0:00:49.7]} 43... Qxb7 {[%clk 0:00:12.5]} 44. Qxf5 {[%clk
0:00:49.4]} 44... Kg7 {[%clk 0:00:11.4]} 45. Qe6 {[%clk 0:00:45.3]} 45... Qf3
{[%clk 0:00:09]} 46. Qg4+ {[%clk 0:00:39.4]} 46... Qxg4+ {[%clk 0:00:08.7]} 47.
hxg4 {[%clk 0:00:40.3]} 47... f5 {[%clk 0:00:04]} 48. gxf5 {[%clk 0:00:35.2]}
48... Kf6 {[%clk 0:00:04.3]} 49. Kg2 {[%clk 0:00:36.1]} 49... Kxf5 {[%clk
0:00:05]} 50. Kf3 {[%clk 0:00:29.1]} 50... h5 {[%clk 0:00:05.5]} 51. Kg3 {[%clk
0:00:29.8]} 51... h4+ {[%clk 0:00:05.9]} 52. Kxh4 {[%clk 0:00:30.4]} 52... Kxf4
{[%clk 0:00:06.6]} 53. Kh3 {[%clk 0:00:31.1]} 53... Ke3 {[%clk 0:00:07.1]} 54.
Kg4 {[%clk 0:00:31.7]} 54... Kd3 {[%clk 0:00:07.7]} 55. Kf5 {[%clk 0:00:32.4]}
55... Kc3 {[%clk 0:00:08.3]} 56. Ke5 {[%clk 0:00:33.3]} 56... Kxb3 {[%clk
0:00:08.8]} 57. Kd5 {[%clk 0:00:34.2]} 57... a4 {[%clk 0:00:07]} 58. Kc6 {[%clk
0:00:35.1]} 58... a3 {[%clk 0:00:06.7]} 59. Kxb6 {[%clk 0:00:36]} 59... Kxc4
{[%clk 0:00:06]} 60. Kc6 {[%clk 0:00:34.8]} 60... a2 {[%clk 0:00:06.6]} 61. b6
{[%clk 0:00:35.7]} 61... a1=Q {[%clk 0:00:07.2]} 62. b7 {[%clk 0:00:36.6]} 62...
Qa6+ {[%clk 0:00:07]} 63. Kc7 {[%clk 0:00:36.6]} 63... Qb5 {[%clk 0:00:07.1]}
64. b8=Q {[%clk 0:00:35.1]} 64... Qxb8+ {[%clk 0:00:07.8]} 65. Kxb8 {[%clk
0:00:35.8]} 65... Kb4 {[%clk 0:00:08.5]} 66. Kc7 {[%clk 0:00:36.7]} 66... c4
{[%clk 0:00:09.4]} 0-1

[Event "Late-Titled-Tuesday-Blitz-September-26-2023"]
[Site "Chess.com"]
[Date "2023.09.26"]
[Round "6"]
[White "szachmistrz2500"]
[Black "FMVolodymyrSakun"]
[Result "0-1"]
[WhiteElo "2442"]
[BlackElo "2641"]
[TimeControl "180+1"]
[EndTime "15:04:41 PDT"]
[Termination "FMVolodymyrSakun won by resignation"]

1. Nf3 {[%clk 0:03:00.9]} 1... c5 {[%clk 0:02:59.6]} 2. g3 {[%clk 0:03:00.9]}
2... Nc6 {[%clk 0:02:57.4]} 3. Bg2 {[%clk 0:03:01]} 3... e5 {[%clk 0:02:56.9]}
4. O-O {[%clk 0:02:56.2]} 4... d5 {[%clk 0:02:40]} 5. d3 {[%clk 0:02:56.1]} 5...
Nf6 {[%clk 0:02:38.6]} 6. e4 {[%clk 0:02:56.3]} 6... dxe4 {[%clk 0:02:22.3]} 7.
dxe4 {[%clk 0:02:56]} 7... Qxd1 {[%clk 0:02:22.3]} 8. Rxd1 {[%clk 0:02:56.1]}
8... Bg4 {[%clk 0:02:06.6]} 9. Re1 {[%clk 0:02:53]} 9... O-O-O {[%clk
0:01:48.3]} 10. c3 {[%clk 0:02:44.6]} 10... Nxe4 {[%clk 0:01:43.7]} 11. Nxe5
{[%clk 0:02:23.4]} 11... Nxe5 {[%clk 0:01:37.9]} 12. Bxe4 {[%clk 0:02:22.8]}
12... Nf3+ {[%clk 0:01:27.9]} 13. Bxf3 {[%clk 0:02:22.8]} 13... Bxf3 {[%clk
0:01:28.8]} 14. Nd2 {[%clk 0:02:23.2]} 14... Bd5 {[%clk 0:01:27.2]} 15. Nf1
{[%clk 0:02:00.1]} 15... f6 {[%clk 0:01:23.7]} 16. Be3 {[%clk 0:01:50.7]} 16...
g5 {[%clk 0:01:20]} 17. b3 {[%clk 0:01:48.5]} 17... h5 {[%clk 0:01:17.2]} 18.
Rad1 {[%clk 0:01:45.3]} 18... h4 {[%clk 0:01:11.8]} 19. c4 {[%clk 0:01:42]}
19... Bc6 {[%clk 0:01:06.6]} 20. Rxd8+ {[%clk 0:01:33.6]} 20... Kxd8 {[%clk
0:01:07.5]} 21. f4 {[%clk 0:01:29.6]} 21... g4 {[%clk 0:00:54.5]} 22. Bd2 {[%clk
0:01:19.7]} 22... Bf3 {[%clk 0:00:48.5]} 23. Bc3 {[%clk 0:01:18.6]} 23... Be7
{[%clk 0:00:37.8]} 24. Nd2 {[%clk 0:01:14.5]} 24... hxg3 {[%clk 0:00:36.4]} 25.
Nxf3 {[%clk 0:01:11.5]} 25... gxf3 {[%clk 0:00:33.6]} 26. hxg3 {[%clk
0:01:11.6]} 26... Rh3 {[%clk 0:00:32.8]} 27. Kf2 {[%clk 0:01:05.1]} 27... Rh2+
{[%clk 0:00:33.1]} 28. Kxf3 {[%clk 0:01:05.3]} 28... Rxa2 {[%clk 0:00:33.1]} 29.
Rd1+ {[%clk 0:01:01.3]} 29... Ke8 {[%clk 0:00:32.8]} 30. Re1 {[%clk 0:00:59.1]}
30... Kf7 {[%clk 0:00:33]} 31. Re3 {[%clk 0:00:52.6]} 31... a6 {[%clk
0:00:31.2]} 32. Ke4 {[%clk 0:00:51.3]} 32... b5 {[%clk 0:00:27.3]} 33. Kd5
{[%clk 0:00:49.1]} 33... b4 {[%clk 0:00:26]} 34. Be1 {[%clk 0:00:48.8]} 34... a5
{[%clk 0:00:23.3]} 35. Rf3 {[%clk 0:00:36.1]} 35... a4 {[%clk 0:00:23.4]} 36.
bxa4 {[%clk 0:00:35.2]} 36... Rxa4 {[%clk 0:00:22]} 37. Rb3 {[%clk 0:00:26.4]}
37... f5 {[%clk 0:00:18.2]} 38. Bd2 {[%clk 0:00:24.9]} 38... Kg6 {[%clk
0:00:15.9]} 39. Be3 {[%clk 0:00:24.5]} 39... Ra3 {[%clk 0:00:14]} 40. Bxc5
{[%clk 0:00:12.6]} 40... Bxc5 {[%clk 0:00:12.9]} 41. Rb1 {[%clk 0:00:11.7]}
41... Bf8 {[%clk 0:00:11.1]} 42. c5 {[%clk 0:00:11.9]} 42... Rc3 {[%clk
0:00:11.1]} 43. Rxb4 {[%clk 0:00:10.8]} 43... Rxc5+ {[%clk 0:00:11.2]} 44. Kd4
{[%clk 0:00:09]} 44... Rd5+ {[%clk 0:00:08.1]} 45. Kxd5 {[%clk 0:00:08.9]} 45...
Bxb4 {[%clk 0:00:08.3]} 46. Ke6 {[%clk 0:00:08.3]} 46... Be1 {[%clk 0:00:05.9]}
47. g4 {[%clk 0:00:07.2]} 47... fxg4 {[%clk 0:00:06.3]} 48. f5+ {[%clk
0:00:07.7]} 48... Kg5 {[%clk 0:00:06.9]} 49. f6 {[%clk 0:00:07.6]} 49... Bb4
{[%clk 0:00:07.5]} 50. f7 {[%clk 0:00:07.9]} 50... g3 {[%clk 0:00:07.7]} 0-1